fUSD/lending_fUSD_20250620
["ID","MTS","AMOUNT","RATE_DAILY","PERIOD"]
[366698497,1750415486756,-151.0,0.00025989,7]
[366698498,1750415486766,-151.0,0.00025989,7]
[366698499,1750415486776,-151.0,0.00025989,7]
[366698500,1750415486786,-959.767891,0.00025989,7]
[366698501,1750415486796,-151.0,0.00025989,7]
[366698502,1750415486806,-959.767891,0.00025989,7]
[366698503,1750415486816,-1308.218009,0.00025989,7]
[366698504,1750415486826,-151.0,0.00025989,7]
[366698505,1750415486836,-1308.218009,0.00025989,7]
[366698506,1750415486846,-303.833978,0.00025989,7]
[366698507,1750415486856,-303.833978,0.00025989,7]
[366698508,1750415486866,-151.0,0.00025989,7]
[366698509,1750415486876,-231.307889,0.00025989,7]
[366698510,1750415486885,-205.587972,0.00025989,7]
[366698511,1750415486896,-205.587972,0.00025989,7]
[366698512,1750415486906,-205.587972,0.00025989,7]
[366698513,1750415486916,-205.587972,0.00025989,7]
[366698514,1750415486925,-265.133309,0.00025989,7]
[366698515,1750415486936,-265.133309,0.00025989,7]
[366698516,1750415486945,-151.0,0.00025989,7]
[366698517,1750415486955,-151.0,0.00025989,7]
[366698518,1750415486964,-151.0,0.00025989,7]
[366698519,1750415486974,-150.0,0.00025989,2]
[366698520,1750415486984,-6172.5692453,0.00025989,2]
[366698521,1750415486994,-150.0,0.00025989,2]
[366698522,1750415487004,-5960.85969651,0.00025989,2]
[366698523,1750415487014,-584.193166,0.00025989,7]
[366698524,1750415487024,-584.193166,0.00025989,7]
[366698525,1750415487034,-294.655675,0.00025989,7]
[366698526,1750415487044,-294.655675,0.00025989,7]
[366698527,1750415487054,-294.655675,0.00025989,7]
[366698528,1750415487064,-294.655675,0.00025989,7]
[366698529,1750415487074,-1979.221241,0.00025989,7]
[366698530,1750415487084,-1979.221241,0.00025989,7]
[366698531,1750415487094,-344.384195,0.00025989,7]
[366698532,1750415487108,-439.198607,0.00025989,7]
[366698533,1750415487118,-344.384195,0.00025989,7]
[366698534,1750415487127,-439.198607,0.00025989,7]
[366698535,1750415487138,-492.677088,0.00025989,7]
[366698536,1750415487149,-492.677088,0.00025989,7]
[366698537,1750415487159,-201.015627,0.00025989,7]
[366698538,1750415487169,-492.677088,0.00025989,7]
[366698539,1750415487180,-492.677088,0.00025989,7]
[366698540,1750415487190,-201.015627,0.00025989,7]
[366698541,1750415487201,-224.030406,0.00025989,7]
[366698542,1750415487211,-224.030406,0.00025989,7]
[366698543,1750415487222,-3374.102372,0.00025989,7]
[366698544,1750415487231,-3374.102372,0.00025989,7]
[366698545,1750415487241,-155.529264,0.00025989,7]
[366698546,1750415487251,-155.529264,0.00025989,7]
[366698547,1750415487261,-151.0,0.00025989,7]
[366698548,1750415487271,-151.0,0.00025989,7]
[366698549,1750415487281,-151.0,0.00025989,7]
[366698550,1750415487290,-151.0,0.00025989,7]
[366698551,1750415487300,-10000.0,0.00025989,7]
[366698552,1750415487310,-10000.0,0.00025989,7]
[366698553,1750415487320,-10000.0,0.00025989,7]
[366698554,1750415487330,-10000.0,0.00025989,7]
[366698555,1750415487339,-276.108613,0.00025989,7]
[366698556,1750415487349,-151.0,0.00025989,7]
[366698557,1750415487359,-182.931482,0.00025989,7]
[366698558,1750415487369,-209.914755,0.00025989,7]
[366698559,1750415487379,-276.108613,0.00025989,7]
[366698560,1750415487388,-209.914755,0.00025989,7]
[366698561,1750415487398,-243.405194,0.00025989,7]
[366698562,1750415487408,-370.729428,0.00025989,7]
[366698563,1750415487418,-370.729428,0.00025989,7]
[366698564,1750415487428,-243.405194,0.00025989,7]
[366698565,1750415487437,-370.729428,0.00025989,7]
[366698566,1750415487447,-370.729428,0.00025989,7]
[366698567,1750415487456,-212.479122,0.00025989,7]
[366698568,1750415487467,-212.479122,0.00025989,7]
[366698569,1750415487477,-151.0,0.00025989,7]
[366698570,1750415487487,-151.0,0.00025989,7]
[366698571,1750415487497,-212.479122,0.00025989,7]
[366698572,1750415487509,-212.479122,0.00025989,7]
[366698573,1750415487519,-151.0,0.00025989,7]
[366698574,1750415487529,-151.0,0.00025989,7]
[366698575,1750415487538,-985.154821,0.00025989,7]
[366698576,1750415487548,-985.154821,0.00025989,7]
[366698577,1750415487558,-151.0,0.00025989,7]
[366698578,1750415487568,-151.0,0.00025989,7]
[366698579,1750415487579,-730.634615,0.00025989,7]
[366698580,1750415487591,-730.634615,0.00025989,7]
[366698581,1750415487601,-730.634615,0.00025989,7]
[366698582,1750415487611,-730.634615,0.00025989,7]
[366698583,1750415487621,-1180.663306,0.00025989,7]
[366698584,1750415487632,-178.980671,0.00025989,7]
[366698585,1750415487642,-178.980671,0.00025989,7]
[366698586,1750415487652,-1180.663306,0.00025989,7]
[366698587,1750415487662,-213.240958,0.00025989,7]
[366698588,1750415487672,-7206.413036,0.00025989,7]
[366698589,1750415487682,-7206.413036,0.00025989,7]
[366698590,1750415487692,-7206.413036,0.00025989,7]
[366698591,1750415487702,-7206.413036,0.00025989,7]
[366698592,1750415487712,-395.705153,0.00025989,7]
[366698593,1750415487722,-395.705153,0.00025989,7]
[366698594,1750415487732,-395.705153,0.00025989,7]
[366698595,1750415487742,-395.705153,0.00025989,7]
[366698596,1750415487752,-2496.698892,0.00025989,7]
[366698597,1750415487763,-2496.698892,0.00025989,7]
[366698598,1750415487773,-242.497975,0.00025989,7]
[366698599,1750415487782,-1091.704485,0.00025989,14]
[366698600,1750415487792,-242.497975,0.00025989,7]
[366698601,1750415487802,-151.0,0.00025989,7]
[366698602,1750415487813,-274.852889,0.00025989,7]
[366698603,1750415487822,-226.355101,0.00025989,7]
[366698604,1750415487832,-226.355101,0.00025989,7]
[366698605,1750415487842,-168.834443,0.00025989,7]
[366698606,1750415487852,-168.834443,0.00025989,7]
[366698607,1750415487862,-399.114272,0.00025989,7]
[366698608,1750415487872,-399.114272,0.00025989,7]
[366698609,1750415487882,-821.954408,0.00025989,7]
[366698610,1750415487891,-821.954408,0.00025989,7]
[366698611,1750415487901,-495880.25250511,0.00025989,3]
[366698612,1750415487911,-31714.0,0.0002599,7]
[366698613,1750415487921,-959.767891,0.0002599,7]
[366698614,1750415487930,-959.767891,0.0002599,7]
[366698615,1750415487940,-230.95524179,0.00025993,4]
[366698616,1750415487951,-500.0,0.00025993,4]
[366698617,1750415487961,-260.18008071,0.00025993,4]
[366698618,1750415487971,-500.0,0.00025993,4]
[366698619,1750415487980,-500.0,0.00025993,4]
[366698620,1750415487990,-500.0,0.00025993,4]
[366698621,1750415488000,-500.0,0.00025993,4]
[366698622,1750415488010,-252.27591577,0.00025993,4]
[366698623,1750415488020,-500.0,0.00025993,4]
[366698624,1750415488030,-3070.0,0.00025993,4]
[366698625,1750415488041,-500.0,0.00025993,4]
[366698626,1750415488050,-500.0,0.00025993,4]
[366698627,1750415488061,-500.0,0.00025993,4]
[366698628,1750415488071,-500.0,0.00025993,4]
[366698629,1750415488081,-182.537077,0.00025994,7]
[366698630,1750415488091,-182.537077,0.00025994,7]
[366698631,1750415488102,-151.0,0.00025994,7]
[366698632,1750415488112,-3122.501418,0.00025994,7]
[366698633,1750415488123,-3122.501418,0.00025994,7]
[366698634,1750415488134,-855.14,0.00025995,4]
[366698635,1750415488145,-490.0,0.00025995,4]
[366698636,1750415488155,-490.0,0.00025995,4]
[366698637,1750415488165,-941.29,0.00025995,4]
[366698638,1750415488176,-490.0,0.00025995,4]
[366698639,1750415488186,-1474.28,0.00025995,4]
[366698640,1750415488196,-2101.97,0.00026,4]
[366698641,1750415488206,-851.127774,0.00026,7]
[366698642,1750415488216,-151.0,0.00026,7]
[366698643,1750415488226,-151.0,0.00026,7]
[366698644,1750415488236,-151.0,0.00026,7]
[366698645,1750415488246,-667.338228,0.00026,7]
[366698646,1750415488256,-667.338228,0.00026,7]
[366698647,1750415488266,-151.0,0.00026,7]
[366698648,1750415488277,-834.11677829,0.00026,3]
[366698649,1750415488287,-376.0,0.00026,2]
[366698650,1750415488297,-941.9736,0.00026,2]
[366698651,1750415488307,-769.0,0.00026,2]
[366698652,1750415488317,-578.0291,0.00026,2]
[366698653,1750415488327,-947.0,0.00026,2]
[366698654,1750415488337,-710.39,0.00026005,4]
[366698655,1750415488347,-2657.88,0.00026005,4]
[366698656,1750415488357,-678.91,0.00026005,4]
[366698657,1750415488367,-951.97,0.00026005,4]
[366698658,1750415488378,-982.82,0.00026005,4]
[366698659,1750415488388,-934.95,0.00026005,4]
[366698660,1750415488399,-490.0,0.00026005,4]
[366698661,1750415488410,-490.0,0.00026005,4]
[366698662,1750415488421,-490.0,0.00026005,4]
[366698663,1750415488431,-1196.7,0.00026005,4]
[366698664,1750415488441,-905.13,0.00026005,4]
[366698665,1750415488452,-490.0,0.00026005,4]
[366698666,1750415488462,-733.67,0.00026005,4]
[366698667,1750415488473,-623.14,0.00026005,4]
[366698668,1750415488483,-858.58,0.00026005,4]
[366698669,1750415488493,-4996.22,0.00026005,4]
[366698670,1750415488631,-1411.02,0.00026005,4]
[366698671,1750415488643,-490.0,0.00026005,4]
[366698672,1750415488653,-490.0,0.00026005,4]
[366698673,1750415488665,-566.53,0.00026005,4]
[366698674,1750415488674,-673.04,0.00026005,4]
[366698675,1750415488684,-1000.0,0.00026005,4]
[366698676,1750415488694,-490.0,0.00026005,4]
[366698677,1750415488703,-560.81,0.00026005,4]
[366698678,1750415488713,-5470.75,0.00026005,4]
[366698679,1750415488723,-572.39196642,0.00026005,4]
[366698680,1750415488733,-490.0,0.00026005,4]
[366698681,1750415488742,-490.0,0.00026005,4]
[366698682,1750415488752,-490.0,0.00026005,2]
[366698683,1750415488761,-2781.24,0.00026005,4]
[366698684,1750415488771,-608.76,0.00026005,4]
[366698685,1750415488780,-490.0,0.00026005,4]
[366698686,1750415488790,-622.46,0.00026005,4]
[366698687,1750415488800,-2671.47,0.00026005,4]
[366698688,1750415488810,-490.0,0.00026005,4]
[366698689,1750415488820,-807.14,0.00026005,4]
[366698690,1750415488830,-557.45985289,0.00026016,4]
[366698691,1750415488839,-490.0,0.00026016,4]
[366698692,1750415488849,-490.0,0.00026016,4]
[366698693,1750415488858,-490.0,0.00026016,4]
[366698694,1750415488868,-490.0,0.00026016,4]
[366698695,1750415488877,-490.0,0.00026016,4]
[366698696,1750415488887,-490.0,0.00026016,4]
[366698697,1750415488896,-490.0,0.00026016,4]
[366698698,1750415488906,-525.64,0.00026016,4]
[366698699,1750415488915,-490.0,0.00026016,4]
[366698700,1750415488924,-490.0,0.00026016,4]
[366698701,1750415488934,-490.0,0.00026016,4]
[366698702,1750415488944,-490.0,0.00026016,4]
[366698703,1750415488953,-824.86,0.00026016,4]
[366698704,1750415488963,-490.0,0.00026016,4]
[366698705,1750415488973,-490.0,0.00026016,4]
[366698706,1750415488983,-490.0,0.00026016,4]
[366698707,1750415488993,-1042.35,0.00026016,4]
[366698708,1750415489002,-2063.423116,0.00026016,4]
[366698709,1750415489011,-1129.83,0.00026016,4]
[366698710,1750415489022,-490.0,0.00026016,4]
[366698711,1750415489032,-490.0,0.00026016,4]
[366698712,1750415489042,-2980.629608,0.00026016,4]
[366698713,1750415489051,-493.3685372,0.00026016,4]
[366698714,1750415489061,-1443.11,0.00026016,4]
[366698715,1750415489071,-6813.75,0.00026016,4]
[366698716,1750415489080,-490.0,0.00026016,4]
[366698717,1750415489090,-977.73,0.00026016,4]
[366698718,1750415489102,-1060.66,0.00026016,4]
[366698719,1750415489113,-1271.04,0.00026016,4]
[366698720,1750415489123,-490.0,0.00026016,4]
[366698721,1750415489132,-1687.17,0.00026016,4]
[366698722,1750415489144,-490.0,0.00026016,4]
[366698723,1750415489154,-490.0,0.00026016,4]
[366698724,1750415489164,-1425.44,0.00026016,4]
[366698725,1750415489174,-490.0,0.00026016,4]
[366698726,1750415489187,-1260.23,0.00026016,4]
[366698727,1750415489197,-490.0,0.00026016,4]
[366698728,1750415489209,-430.87468176,0.00026016,4]
[366698729,1750415489219,-535.62,0.00026016,4]
[366698730,1750415489228,-600.47,0.00026016,4]
[366698731,1750415489237,-490.0,0.00026016,4]
[366698732,1750415489247,-389.27394868,0.00026016,4]
[366698733,1750415489257,-7447.5,0.00026016,4]
[366698734,1750415489267,-490.0,0.00026016,4]
[366698735,1750415489276,-490.0,0.00026016,4]
[366698736,1750415489285,-998.98,0.00026016,4]
[366698737,1750415489295,-490.0,0.00026016,4]
[366698738,1750415489305,-1377.1,0.00026016,4]
[366698739,1750415489314,-490.0,0.00026016,4]
[366698740,1750415489323,-490.0,0.00026016,4]
[366698741,1750415489333,-4861.36,0.00026016,4]
[366698742,1750415489343,-1977.29,0.00026016,4]
[366698743,1750415489352,-490.0,0.00026016,4]
[366698744,1750415489362,-1276.4,0.00026016,4]
[366698745,1750415489371,-2488.9,0.00026016,4]
[366698746,1750415489382,-2235.26,0.00026016,4]
[366698747,1750415489391,-1190.82,0.00026016,4]
[366698748,1750415489400,-712.91,0.00026016,4]
[366698749,1750415489409,-1879.2,0.00026016,4]
[366698750,1750415489418,-490.0,0.00026016,4]
[366698751,1750415489427,-3348.43,0.00026016,4]
[366698752,1750415489436,-2145.92,0.00026016,4]
[366698753,1750415489446,-3119.56,0.00026016,4]
[366698754,1750415489456,-3273.4,0.00026016,4]
[366698755,1750415489466,-490.0,0.00026017,4]
[366698756,1750415489476,-490.0,0.00026017,4]
[366698757,1750415489486,-490.0,0.00026017,4]
[366698758,1750415489496,-490.0,0.00026017,4]
[366698759,1750415489505,-490.0,0.00026017,4]
[366698760,1750415489515,-490.0,0.00026017,4]
[366698761,1750415489525,-1480.37,0.00026017,4]
[366698762,1750415489534,-490.0,0.00026017,4]
[366698763,1750415489544,-1643.1,0.00026017,4]
[366698764,1750415489553,-490.0,0.00026017,4]
[366698765,1750415489563,-490.0,0.00026017,4]
[366698766,1750415489574,-490.0,0.00026017,4]
[366698767,1750415489585,-565.51,0.00026017,4]
[366698768,1750415489595,-492.45,0.00026017,4]
[366698769,1750415489604,-2032.33,0.00026017,4]
[366698770,1750415489614,-490.0,0.00026017,4]
[366698771,1750415489624,-490.0,0.00026017,4]
[366698772,1750415489635,-880.4,0.00026017,4]
[366698773,1750415489645,-490.0,0.00026017,4]
[366698774,1750415489655,-490.0,0.00026017,4]
[366698775,1750415489664,-1088.85,0.00026017,4]
[366698776,1750415489674,-490.0,0.00026017,4]
[366698777,1750415489684,-848.08,0.00026017,4]
[366698778,1750415489694,-490.0,0.00026017,4]
[366698779,1750415489704,-912.78,0.00026017,4]
[366698780,1750415489714,-1634.09,0.00026017,4]
[366698781,1750415489724,-1838.84,0.00026017,4]
[366698782,1750415489734,-895.29,0.00026017,4]
[366698783,1750415489744,-669.38,0.00026017,4]
[366698784,1750415489754,-818.8,0.00026017,4]
[366698785,1750415489763,-190.77935294,0.00026017,4]
[366698786,1750415489774,-490.0,0.00026017,4]
[366698787,1750415489784,-1627.01,0.00026017,4]
[366698788,1750415489793,-490.0,0.00026017,4]
[366698789,1750415489803,-490.0,0.00026017,4]
[366698790,1750415489813,-490.0,0.00026017,4]
[366698791,1750415489823,-1078.58,0.00026017,4]
[366698792,1750415489833,-490.0,0.00026017,4]
[366698793,1750415489844,-994.67,0.00026017,4]
[366698794,1750415489853,-771.65,0.00026017,4]
[366698795,1750415489863,-490.0,0.00026017,4]
[366698796,1750415489873,-490.0,0.00026017,4]
[366698797,1750415489883,-490.0,0.00026017,4]
[366698798,1750415489894,-694.41,0.00026017,4]
[366698799,1750415489904,-679.99,0.00026017,4]
[366698800,1750415489914,-490.0,0.00026017,4]
[366698801,1750415489924,-2362.55,0.00026017,4]
[366698802,1750415489934,-490.0,0.00026017,4]
[366698803,1750415489945,-490.0,0.00026017,4]
[366698804,1750415489955,-490.0,0.00026017,4]
[366698805,1750415489965,-592.8,0.00026017,4]
[366698806,1750415489974,-490.0,0.00026017,4]
[366698807,1750415489984,-490.0,0.00026017,4]
[366698808,1750415489993,-490.0,0.00026017,4]
[366698809,1750415490003,-542.79,0.00026017,4]
[366698810,1750415490013,-1385.22,0.00026017,4]
[366698811,1750415490022,-1591.3,0.00026017,4]
[366698812,1750415490033,-490.0,0.00026017,4]
[366698813,1750415490042,-1073.69,0.00026017,4]
[366698814,1750415490052,-490.0,0.00026017,4]
[366698815,1750415490062,-616.36,0.00026017,4]
[366698816,1750415490071,-490.0,0.00026017,4]
[366698817,1750415490080,-490.0,0.00026017,4]
[366698818,1750415490090,-490.0,0.00026017,4]
[366698819,1750415490099,-583.29,0.00026017,4]
[366698820,1750415490109,-490.0,0.00026017,4]
[366698821,1750415490118,-1175.68,0.00026017,4]
[366698822,1750415490127,-1312.24,0.00026017,4]
[366698823,1750415490137,-1363.77,0.00026017,4]
[366698824,1750415490146,-490.0,0.00026017,4]
[366698825,1750415490156,-490.0,0.00026017,4]
[366698826,1750415490166,-770.8,0.00026017,4]
[366698827,1750415490175,-997.01,0.00026017,4]
[366698828,1750415490185,-989.39,0.00026017,4]
[366698829,1750415490194,-567.86,0.00026017,4]
[366698830,1750415490204,-1096.04,0.00026017,4]
[366698831,1750415490214,-1520.45,0.00026017,4]
[366698832,1750415490224,-490.0,0.00026017,4]
[366698833,1750415490233,-805.39,0.00026017,4]
[366698834,1750415490243,-490.0,0.00026017,4]
[366698835,1750415490252,-490.0,0.00026017,4]
[366698836,1750415490263,-490.0,0.00026017,4]
[366698837,1750415490272,-596.59,0.00026017,4]
[366698838,1750415490282,-1428.58,0.00026017,4]
[366698839,1750415490291,-490.0,0.00026017,4]
[366698840,1750415490300,-490.0,0.00026017,4]
[366698841,1750415490309,-490.0,0.00026017,4]
[366698842,1750415490319,-5382.53,0.00026017,4]
[366698843,1750415490328,-490.0,0.00026017,4]
[366698844,1750415490337,-703.96,0.00026017,4]
[366698845,1750415490346,-215.4,0.00026017,4]
[366698846,1750415490355,-1669.54,0.00026017,4]
[366698847,1750415490365,-1601.56,0.00026017,4]
[366698848,1750415490375,-2721.61,0.00026017,4]
[366698849,1750415490384,-490.0,0.00026017,4]
[366698850,1750415490394,-490.0,0.00026017,4]
[366698851,1750415490403,-741.54,0.00026017,4]
[366698852,1750415490412,-669.76,0.00026017,4]
[366698853,1750415490421,-1225.01,0.00026017,4]
[366698854,1750415490431,-2422.36,0.00026017,4]
[366698855,1750415490441,-1005.68,0.00026017,4]
[366698856,1750415490450,-341.44838712,0.00026017,4]
[366698857,1750415490459,-490.0,0.00026017,4]
[366698858,1750415490469,-2138.59,0.00026017,4]
[366698859,1750415490479,-490.0,0.00026017,4]
[366698860,1750415490488,-998.16,0.00026017,4]
[366698861,1750415490497,-4396.87,0.00026017,4]
[366698862,1750415490507,-933.76,0.00026017,4]
[366698863,1750415490516,-897.22,0.00026017,4]
[366698864,1750415490526,-1489.74,0.00026017,4]
[366698865,1750415490535,-2632.99,0.00026017,4]
[366698866,1750415490544,-490.0,0.00026017,4]
[366698867,1750415490554,-2115.45,0.00026017,4]
[366698868,1750415490563,-1788.12,0.00026017,4]
[366698869,1750415490573,-969.59,0.00026017,4]
[366698870,1750415490583,-587.84,0.00026017,4]
[366698871,1750415490592,-490.0,0.00026017,4]
[366698872,1750415490602,-490.0,0.00026017,4]
[366698873,1750415490611,-747.47,0.00026017,4]
[366698874,1750415490620,-629.05,0.00026017,4]
[366698875,1750415490630,-1158.39,0.00026017,4]
[366698876,1750415490639,-4900.18,0.00026017,4]
[366698877,1750415490649,-490.0,0.00026017,4]
[366698878,1750415490660,-1552.28,0.00026017,4]
[366698879,1750415490669,-540.28,0.00026017,4]
[366698880,1750415490679,-490.0,0.00026017,4]
[366698881,1750415490688,-490.0,0.00026017,4]
[366698882,1750415490699,-1986.49,0.00026017,4]
[366698883,1750415490708,-2142.56,0.00026017,4]
[366698884,1750415490718,-490.0,0.00026017,4]
[366698885,1750415490727,-675.46,0.00026017,4]
[366698886,1750415490736,-2131.24,0.00026017,4]
[366698887,1750415490745,-1335.47,0.00026017,4]
[366698888,1750415490754,-3901.98,0.00026017,4]
[366698889,1750415490763,-894.67,0.00026017,4]
[366698890,1750415490772,-694.78,0.00026017,4]
[366698891,1750415490782,-748.02,0.00026017,4]
[366698892,1750415490791,-2210.45,0.00026017,4]
[366698893,1750415490800,-1823.65,0.00026017,4]
[366698894,1750415490810,-490.0,0.00026017,4]
[366698895,1750415490819,-1839.21,0.00026017,4]
[366698896,1750415490829,-951.3,0.00026017,4]
[366698897,1750415490838,-490.0,0.00026017,4]
[366698898,1750415490847,-828.87,0.00026017,4]
[366698899,1750415490858,-490.0,0.00026017,4]
[366698900,1750415490867,-828.66,0.00026017,4]
[366698901,1750415490876,-2336.71,0.00026017,4]
[366698902,1750415490886,-490.0,0.00026017,4]
[366698903,1750415490895,-1193.56,0.00026017,4]
[366698904,1750415490904,-283.82434647,0.00026017,4]
[366698905,1750415490914,-490.0,0.00026017,4]
[366698906,1750415490923,-508.71545539,0.00026017,4]
[366698907,1750415490933,-1201.91,0.00026017,4]
[366698908,1750415490942,-1533.32,0.00026017,4]
[366698909,1750415490951,-2402.13,0.00026017,4]
[366698910,1750415490960,-2054.14,0.00026017,4]
[366698911,1750415490969,-490.0,0.00026017,4]
[366698912,1750415490978,-1310.9,0.00026017,4]
[366698913,1750415490988,-153.23470798,0.0002602,4]
[366698914,1750415490997,-206.19320469,0.0002602,4]
[366698915,1750415491006,-500.0,0.0002602,4]
[366698916,1750415491016,-500.0,0.0002602,4]
[366698917,1750415491026,-599.85492174,0.0002602,4]
[366698918,1750415491035,-500.0,0.0002602,4]
[366698919,1750415491045,-3070.0,0.0002602,4]
[366698920,1750415491054,-178.97976469,0.0002602,4]
[366698921,1750415491063,-500.0,0.0002602,4]
[366698922,1750415491073,-1000.0,0.00026021,2]
[366698923,1750415491082,-500.0,0.00026021,2]
[366698924,1750415491092,-419.89933494,0.00026021,2]
[366698925,1750415491105,-371.97162593,0.00026021,2]
[366698926,1750415491114,-500.0,0.00026021,2]
[366698927,1750415491124,-503.8733946,0.00026021,2]
[366698928,1750415491133,-150.124,0.00026025,2]
[366698929,1750415491143,-150.0,0.00026025,2]
[366698930,1750415491153,-150.393,0.00026025,2]
[366698931,1750415491163,-667.338228,0.00026027,7]
[366698932,1750415491173,-667.338228,0.00026027,7]
[366698933,1750415491185,-151.0,0.00026027,7]
[366698934,1750415491195,-151.0,0.00026027,7]
[366698935,1750415491204,-490.0,0.00026027,4]
[366698936,1750415491213,-490.0,0.00026027,4]
[366698937,1750415491224,-490.0,0.00026027,4]
[366698938,1750415491234,-490.0,0.00026027,4]
[366698939,1750415491243,-557.09761423,0.00026027,4]
[366698940,1750415491252,-490.0,0.00026027,4]
[366698941,1750415491262,-490.0,0.00026027,4]
[366698942,1750415491272,-558.55,0.00026027,4]
[366698943,1750415491282,-490.0,0.00026027,4]
[366698944,1750415491291,-490.0,0.00026027,4]
[366698945,1750415491301,-490.0,0.00026027,4]
[366698946,1750415491311,-490.0,0.00026027,4]
[366698947,1750415491321,-439.23534453,0.00026027,4]
[366698948,1750415491330,-490.0,0.00026027,4]
[366698949,1750415491340,-490.0,0.00026027,4]
[366698950,1750415491351,-490.0,0.00026027,4]
[366698951,1750415491361,-490.0,0.00026027,4]
[366698952,1750415491370,-490.0,0.00026027,4]
[366698953,1750415491380,-490.0,0.00026027,4]
[366698954,1750415491389,-490.0,0.00026027,4]
[366698955,1750415491399,-536.23,0.00026027,4]
[366698956,1750415491408,-490.0,0.00026027,4]
[366698957,1750415491417,-490.0,0.00026027,4]
[366698958,1750415491426,-490.0,0.00026027,4]
[366698959,1750415491436,-490.0,0.00026027,4]
[366698960,1750415491446,-686.65,0.00026027,4]
[366698961,1750415491455,-490.0,0.00026027,4]
[366698962,1750415491464,-897.84,0.00026027,4]
[366698963,1750415491473,-793.14,0.00026027,4]
[366698964,1750415491482,-490.0,0.00026027,4]
[366698965,1750415491491,-656.19,0.00026027,4]
[366698966,1750415491501,-490.0,0.00026027,4]
[366698967,1750415491511,-624.06,0.00026027,4]
[366698968,1750415491520,-490.0,0.00026027,4]
[366698969,1750415491529,-568.83,0.00026027,4]
[366698970,1750415491539,-402.69,0.00026027,4]
[366698971,1750415491547,-490.0,0.00026027,4]
[366698972,1750415491557,-490.0,0.00026027,4]
[366698973,1750415491566,-490.0,0.00026027,4]
[366698974,1750415491576,-490.0,0.00026027,4]
[366698975,1750415491585,-697.89,0.00026027,4]
[366698976,1750415491595,-490.0,0.00026027,4]
[366698977,1750415491605,-490.0,0.00026027,4]
[366698978,1750415491614,-490.0,0.00026027,4]
[366698979,1750415491623,-724.36,0.00026027,4]
[366698980,1750415491633,-490.0,0.00026027,4]
[366698981,1750415491642,-490.0,0.00026027,4]
[366698982,1750415491651,-490.0,0.00026027,4]
[366698983,1750415491661,-1029.22,0.00026027,4]
[366698984,1750415491670,-490.0,0.00026027,4]
[366698985,1750415491679,-490.0,0.00026027,4]
[366698986,1750415491689,-490.0,0.00026027,4]
[366698987,1750415491699,-490.0,0.00026027,4]
[366698988,1750415491708,-490.0,0.00026027,4]
[366698989,1750415491718,-490.0,0.00026027,4]
[366698990,1750415491728,-490.0,0.00026027,4]
[366698991,1750415491738,-490.0,0.00026027,4]
[366698992,1750415491748,-490.0,0.00026027,4]
[366698993,1750415491757,-490.0,0.00026027,4]
[366698994,1750415491767,-490.0,0.00026027,4]
[366698995,1750415491777,-817.57,0.00026027,4]
[366698996,1750415491786,-490.0,0.00026027,4]